bitfinex-derivatives/quotes_SOLF0:USTF0_20251025
["timestamp","ask_amount","ask_price","bid_price","bid_amount"]
[1761356584227,3.7512468,193.7,193.66,2.64]
[1761356584429,3.7512468,193.71,193.66,2.64]
[1761356584628,3.7512468,193.7,193.66,2.64]
[1761356584829,3.7512468,193.71,193.66,2.64]
[1761356585025,3.7512468,193.7,193.66,2.64]
[1761356585224,3.7512468,193.71,193.66,2.64]
[1761356585426,3.7512468,193.7,193.66,2.64]
[1761356585625,174.56304982,193.72,193.66,2.64]
[1761356585626,3.7512468,193.71,193.66,2.64]
[1761356585826,3.7512468,193.7,193.66,2.64]
[1761356586025,3.7512468,193.71,193.66,2.64]
[1761356586324,3.7512468,193.7,193.66,2.64]
[1761356586529,3.7512468,193.69,193.66,2.64]
[1761356586730,3.7512468,193.7,193.66,2.64]
[1761356587031,3.7512468,193.69,193.66,2.64]
[1761356587335,3.7512468,193.7,193.66,2.64]
[1761356587533,3.7512468,193.69,193.66,2.64]
[1761356587733,3.7512468,193.7,193.66,2.64]
[1761356590128,3.7512468,193.69,193.66,2.64]
[1761356590333,3.7512468,193.7,193.66,2.64]
[1761356595337,3.7512468,193.69,193.66,2.64]
[1761356595537,3.7512468,193.7,193.66,2.64]
[1761356595738,3.7512468,193.69,193.66,2.64]
[1761356595940,3.7512468,193.7,193.66,2.64]
[1761356596242,3.7512468,193.69,193.66,2.64]
[1761356596536,3.7512468,193.7,193.66,2.64]
[1761356596739,3.7512468,193.69,193.66,2.64]
[1761356596935,3.7512468,193.7,193.66,2.64]
[1761356597136,3.7512468,193.69,193.66,2.64]
[1761356597336,3.7512468,193.7,193.66,2.64]
[1761356597557,3.7512468,193.69,193.66,2.64]
[1761356597738,2.34619812,193.71,193.66,2.64]
[1761356598435,174.56304982,193.72,193.68,4.6462]
[1761356598641,174.56304982,193.72,193.69,2.59]
[1761356599443,174.56304982,193.72,193.7,2.59]
[1761356601439,2.34619812,193.74,193.7,7.2355]
[1761356601633,2.34619812,193.74,193.71,2.59]
[1761356601831,62.5,193.76,193.71,2.59]
[1761356604250,62.5,193.76,193.72,2.59]
[1761356604437,2.34619812,193.77,193.72,2.59]
[1761356604741,2.34619812,193.77,193.73,2.59]
[1761356604742,64.84619812,193.77,193.73,2.59]
[1761356605732,64.84619812,193.77,193.72,4.645]
[1761356606449,64.84619812,193.77,193.72,7.235]
[1761356606646,64.84619812,193.77,193.72,4.645]
[1761356607248,2.34619812,193.74,193.71,2.59]
[1761356615159,62.5,193.77,193.71,2.59]
[1761356615464,2.34619812,193.74,193.72,2.59]
[1761356624970,2.34619812,193.77,193.72,2.59]
[1761356626866,2.34619812,193.77,193.69,2.69]
[1761356627077,2.34619812,193.74,193.69,2.69]
[1761356628673,1.50126391,193.71,193.69,2.69]
[1761356629870,1.50126391,193.71,193.67,2.69]
[1761356644578,4.82543536,193.76,193.62,4.6476]
[1761356644579,1.50126391,193.69,193.62,4.6476]
[1761356644772,1.50126391,193.69,193.63,2.63]
[1761356645883,1.50126391,193.69,193.64,2.63]
[1761356652290,1.50126391,193.67,193.64,2.63]
[1761356652588,1.50126391,193.65,193.61,2.59]
[1761356653985,1.50126391,193.65,193.57,0.89879515]
[1761356653986,1.50126391,193.63,193.58,2.59]
[1761356656184,19.82543536,193.71,193.58,2.59]
[1761356656185,19.82543536,193.71,193.59,2.59]
[1761356656388,1.50126391,193.67,193.59,2.59]
[1761356656589,1.50126391,193.69,193.6,2.59]
[1761356657991,1.50126391,193.69,193.61,2.59]
[1761356658690,1.50126391,193.69,193.62,1.50126391]
[1761356659082,6.14736391,193.69,193.63,2.59]
[1761356661480,4.6461,193.69,193.63,2.59]
[1761356668005,1.50126391,193.68,193.61,2.59]
[1761356668997,4.6466,193.67,193.61,2.59]
[1761356670804,4.646,193.69,193.61,2.59]
[1761356671004,4.646,193.69,193.63,2.59]
[1761356674705,1.50126391,193.68,193.63,2.59]
[1761356676007,6.14766391,193.68,193.63,2.59]
[1761356677306,4.6466,193.67,193.63,2.59]
[1761356679616,4.6469,193.66,193.63,2.59]
[1761356680712,4.6471,193.65,193.6,2.71]
[1761356700821,4.83431364,193.69,193.6,2.71]
[1761356701125,4.83431364,193.71,193.6,2.71]
[1761356701325,7.18142806,193.71,193.61,2.81]
[1761356701516,4.83431364,193.7,193.61,2.81]
[1761356702228,4.6466,193.67,193.61,2.81]
[1761356719037,4.647,193.65,193.61,2.81]
[1761356726652,7.18142806,193.68,193.58,2.59]
[1761356726850,2.34711442,193.65,193.58,2.59]
[1761356727952,4.6478,193.62,193.58,2.59]
[1761356729352,4.6481,193.61,193.58,2.59]
[1761356729656,4.6481,193.61,193.57,2.59]
[1761356732450,4.6481,193.61,193.55,111.65482595]
[1761356732657,4.6483,193.6,193.55,2.59]
[1761356735453,4.6475,193.63,193.55,2.59]
[1761356735661,7.18142806,193.67,193.55,2.59]
[1761356736458,2.34711442,193.67,193.55,2.59]
[1761356737061,4.6473,193.64,193.57,2.59]
[1761356744261,4.6468,193.66,193.57,7.2387]
[1761356744466,2.34711442,193.67,193.58,2.81]
[1761356745965,4.6473,193.64,193.58,2.81]
[1761356750472,7.18142806,193.7,193.59,2.81]
[1761356750671,1.50185523,193.68,193.59,1.50185523]
[1761356750868,1.50185523,193.68,193.6,2.81]
[1761356752073,1.50185523,193.68,193.6,4.648]
[1761356752373,4.6462,193.69,193.61,2.81]
[1761356754073,4.6462,193.69,193.62,2.81]
[1761356754276,1.50185523,193.7,193.62,2.81]
[1761356755475,1.50185523,193.7,193.62,7.4574]
[1761356755776,1.50185523,193.7,193.63,2.81]
[1761356757078,1.50185523,193.7,193.64,2.81]
[1761356760680,6.14775523,193.7,193.64,2.81]
[1761356761480,1.50185523,193.68,193.61,7.2378]
[1761356762179,1.50185523,193.68,193.61,4.6478]
[1761356762376,1.50185523,193.68,193.62,2.59]
[1761356766782,1.50185523,193.68,193.63,2.59]
[1761356766984,68.52775523,193.7,193.63,2.59]
[1761356767285,63.88185523,193.7,193.63,2.59]
[1761356771577,63.88185523,193.7,193.64,2.82]
[1761356778189,1.50185523,193.68,193.64,2.82]
[1761356785910,208.53457124,193.7,193.64,2.82]
[1761356786408,1.50185523,193.68,193.64,2.82]
[1761356786907,208.53457124,193.7,193.64,2.82]
[1761356787501,146.15457124,193.7,193.64,2.82]
[1761356788001,144.65271601,193.7,193.64,2.82]
[1761356789003,144.65271601,193.7,193.66,2.82]
[1761356793609,146.15457124,193.7,193.66,2.82]
[1761356804018,144.65271601,193.7,193.66,2.82]
[1761356804914,1.50185523,193.72,193.66,2.82]
[1761356805218,1.50185523,193.72,193.68,2.86]
[1761356805512,1.50185523,193.75,193.69,2.86]
[1761356807024,1.50185523,193.75,193.72,2.86]
[1761356809223,1.50185523,193.73,193.72,2.86]
[1761356812819,64.70475621,193.76,193.72,2.86]
[1761356819731,64.70475621,193.76,193.73,2.76]
[1761356820633,2.34475621,193.81,193.74,2.76]
[1761356820931,64.66475621,193.81,193.74,2.76]
[1761356821822,2.34475621,193.78,193.74,7.4047]
[1761356822022,2.34475621,193.78,193.74,4.6447]
[1761356822450,2.34475621,193.78,193.74,7.4047]
[1761356829036,2.34475621,193.78,193.74,4.6447]
[1761356829236,2.34475621,193.78,193.75,2.63]
[1761356833034,2.34475621,193.78,193.71,2.63]
[1761356833230,2.34475621,193.75,193.71,2.63]
[1761356833436,2.34475621,193.78,193.71,2.63]
[1761356835038,2.34475621,193.78,193.75,2.63]
[1761356837743,2.34475621,193.78,193.71,2.63]
[1761356838944,2.34475621,193.78,193.71,7.2753]
[1761356839139,2.34475621,193.78,193.72,2.63]
[1761356840346,2.34475621,193.78,193.71,4.6453]
[1761356840548,2.34475621,193.75,193.71,4.6453]
[1761356840938,2.34475621,193.75,193.71,7.2753]
[1761356841240,2.34475621,193.75,193.69,107.15363576]
[1761356841441,2.34475621,193.75,193.7,2.63]
[1761356841634,6.98875621,193.78,193.71,4.6453]
[1761356841948,6.98875621,193.78,193.71,7.2753]
[1761356844945,6.98875621,193.78,193.71,4.6453]
[1761356845139,6.98875621,193.78,193.72,2.63]
[1761356846949,62.3,193.77,193.72,2.63]
[1761356848540,137.94311693,193.79,193.7,2.63]
[1761356848749,137.94311693,193.79,193.72,2.63]
[1761356849349,137.94311693,193.79,193.73,2.63]
[1761356849650,64.64475621,193.84,193.73,2.63]
[1761356849949,64.64475621,193.84,193.75,4.6443]
[1761356850149,64.64475621,193.84,193.76,2.63]
[1761356852153,64.64475621,193.84,193.77,2.63]
[1761356861157,69.28735621,193.84,193.77,2.63]
[1761356861664,2.34475621,193.81,193.77,2.63]
[1761356874669,1.49980748,193.79,193.77,2.63]
[1761356883263,1.49980748,193.79,193.69,109.44245025]
[1761356883264,1.49980748,193.79,193.73,4.78425]
[1761356883469,1.49980748,193.75,193.71,7.58425]
[1761356883670,1.49980748,193.73,193.72,2.8]
[1761356887073,1.49980748,193.73,193.7,4.78425]
[1761356887279,1.49980748,193.71,193.69,2.8]
[1761356887674,1.49980748,193.71,193.67,2.8]
[1761356892176,192.12967346,193.79,193.67,2.8]
[1761356892384,1.49980748,193.76,193.67,2.8]
[1761356892880,1.49980748,193.76,193.7,2.79]
[1761356902692,1.49980748,193.74,193.7,2.79]
[1761356903491,1.49980748,193.72,193.68,2.79]
[1761356905687,1.49980748,193.7,193.68,2.79]
[1761356906192,1.49980748,193.7,193.67,4.6464]
[1761356906393,1.49980748,193.7,193.67,7.4364]
[1761356906591,1.49980748,193.7,193.68,2.79]
[1761356913000,1.49980748,193.72,193.68,2.79]
[1761356914594,1.49980748,193.7,193.66,2.79]
[1761356918197,1.49980748,193.72,193.66,2.79]
[1761356922295,4.6452,193.73,193.66,2.79]
[1761356922496,1.49980748,193.72,193.66,2.79]
[1761356923999,4.6447,193.75,193.67,4.6463]
[1761356924192,6.14450748,193.75,193.69,2.71]
[1761356924898,4.6447,193.75,193.69,2.71]
[1761356925505,6.14450748,193.75,193.69,2.71]
[1761356925705,6.14450748,193.75,193.67,4.6463]
[1761356926001,6.14450748,193.75,193.67,7.3563]
[1761356926504,6.14450748,193.75,193.68,2.71]
[1761356927397,6.14450748,193.75,193.68,4.20980748]
[1761356927603,6.14450748,193.75,193.69,2.71]
[1761356927791,4.6447,193.75,193.69,2.71]
[1761356927997,6.14390748,193.77,193.69,2.71]
[1761356928191,6.14390748,193.77,193.65,6.37647633]
[1761356928192,4.6441,193.77,193.71,2.71]
[1761356928503,135.99308094,193.79,193.71,2.71]
[1761356928703,135.99308094,193.79,193.73,2.71]
[1761356930804,134.49327346,193.79,193.73,2.71]
[1761356931201,134.49327346,193.79,193.73,4.20980748]
[1761356931398,134.49327346,193.79,193.73,2.71]
[1761356932207,129.84967346,193.79,193.73,2.71]
[1761356932502,129.84967346,193.79,193.75,2.71]
[1761356934101,135.99318094,193.79,193.72,4.20980748]
[1761356934710,134.49337346,193.79,193.72,2.71]
[1761356939212,129.84967346,193.79,193.72,7.3551]
[1761356939404,129.84967346,193.79,193.73,2.6]
[1761356940311,129.84967346,193.79,193.73,7.2448]
[1761356940512,129.84967346,193.79,193.73,4.6448]
[1761356940813,129.84967346,193.79,193.74,2.6]
[1761356942407,62.28,193.81,193.74,2.6]
[1761356942712,62.26,193.83,193.75,2.6]
[1761356943904,62.26,193.83,193.76,2.6]
[1761356944113,4.82157531,193.86,193.76,2.6]
[1761356944312,66.9018,193.87,193.78,2.6]
[1761356944817,62.26,193.87,193.78,2.6]
[1761356945913,62.26,193.87,193.81,2.6]
[1761356946116,62.26,193.87,193.78,2.6]
[1761356948014,66.9018,193.87,193.78,7.2438]
[1761356949814,2.34400619,193.89,193.81,2.65]
[1761356950015,286.10764726,193.91,193.81,2.65]
[1761356951216,286.10764726,193.91,193.83,2.65]
[1761356953417,223.84764726,193.91,193.83,2.65]
[1761356954621,226.19165345,193.91,193.84,2.65]
[1761356954921,226.19165345,193.91,193.81,2.65]
[1761356956020,226.19165345,193.91,193.82,7.2928]
[1761356959824,226.19165345,193.91,193.7,202.16630505]
[1761356959825,2.34400619,193.88,193.79,2.65]
[1761356960017,62.24,193.87,193.79,2.65]
[1761356960524,62.24,193.87,193.8,2.65]
[1761356962031,62.24,193.87,193.8,7.2931]
[1761356963029,62.24,193.87,193.8,2.65]
[1761356963224,62.24,193.87,193.73,2.65]
[1761356963225,2.34400619,193.82,193.73,2.65]
[1761356963431,62.24,193.81,193.73,2.65]
[1761356964124,62.24,193.81,193.74,2.65]
[1761356966429,62.24,193.81,193.71,2.65]
[1761356966430,2.34400619,193.79,193.71,2.65]
[1761356972127,2.34400619,193.76,193.71,2.65]
[1761356972633,2.34400619,193.76,193.7,102.50378437]
[1761356978637,6.98830619,193.76,193.7,102.50378437]
[1761356983040,6.98830619,193.76,193.7,105.17378437]
[1761356983840,4.6447,193.75,193.7,105.17378437]
[1761356984042,4.6447,193.75,193.7,102.50378437]
[1761356984244,4.6447,193.75,193.71,2.67]
[1761356998050,4.6447,193.75,193.67,66.9262]
[1761356998051,1.50071845,193.74,193.68,2.6]
[1761356999662,4.6447,193.75,193.68,2.6]
[1761356999865,1.50071845,193.74,193.68,2.6]
[1761357001162,4.6447,193.75,193.68,2.6]
[1761357006870,1.50071845,193.74,193.68,2.6]
[1761357007169,1.50071845,193.72,193.65,2.6]
[1761357008069,4.6458,193.7,193.65,2.6]
[1761357009474,4.6452,193.73,193.65,2.6]
[1761357009772,1.50071845,193.73,193.65,2.6]
[1761357010074,1.50071845,193.71,193.65,2.6]
[1761357010370,1.50071845,193.71,193.62,4.15071845]
[1761357010671,1.50071845,193.69,193.62,2.65]
[1761357012073,4.6464,193.68,193.62,2.65]
[1761357013362,4.6466,193.67,193.62,2.65]
[1761357015277,1.50071845,193.69,193.62,2.65]
[1761357015477,1.50071845,193.67,193.6,2.65]
[1761357016979,4.6469,193.66,193.6,2.65]
[1761357025482,4.6469,193.66,193.61,1.50071845]
[1761357025778,4.6469,193.66,193.62,2.65]
[1761357034689,66.9469,193.66,193.62,2.65]
[1761357037692,66.9469,193.66,193.59,3.59882997]
[1761357038086,66.9469,193.66,193.6,2.7]
[1761357039397,1.50071845,193.65,193.6,2.7]
[1761357041595,1.50071845,193.65,193.57,2.7]
[1761357043093,4.6473,193.64,193.57,2.7]
[1761357044795,4.6473,193.64,193.58,2.7]
[1761357046285,1.50071845,193.65,193.58,7.3484]
[1761357046489,63.80071845,193.65,193.59,2.7]
[1761357046898,1.50071845,193.67,193.6,2.7]
[1761357047099,63.80071845,193.67,193.6,2.7]
[1761357047992,68.44731845,193.67,193.6,2.7]
[1761357048991,4.6468,193.66,193.6,2.7]
[1761357053191,1.50071845,193.65,193.6,2.7]
[1761357054905,1.50071845,193.63,193.57,7.3488]
[1761357056703,4.6471,193.65,193.57,7.3488]
[1761357056901,4.6471,193.65,193.58,2.7]
[1761357064411,4.6471,193.65,193.59,2.7]
[1761357064714,2.34804463,193.66,193.59,2.7]
[1761357064715,64.64804463,193.66,193.59,2.7]
[1761357066111,2.34804463,193.66,193.59,2.7]
[1761357066414,64.64804463,193.66,193.59,2.7]
[1761357067619,2.34804463,193.66,193.59,2.7]
[1761357067810,64.64804463,193.66,193.59,2.7]
[1761357068219,69.29484463,193.66,193.59,2.7]
[1761357070514,69.29484463,193.66,193.59,7.3482]
[1761357070718,19.8152741,193.68,193.56,7.27541078]
[1761357070719,15.0,193.68,193.58,2.74]
[1761357070919,62.3,193.67,193.58,2.74]
[1761357071517,62.3,193.67,193.59,2.74]
[1761357072020,62.3,193.67,193.61,2.74]
[1761357072717,133.7053568,193.7,193.62,2.74]
[1761357072911,128.8900827,193.7,193.62,2.74]
[1761357074117,128.8900827,193.7,193.64,7.387]
[1761357074313,128.8900827,193.7,193.64,4.647]
[1761357074511,128.8900827,193.7,193.64,7.387]
[1761357074811,128.8900827,193.7,193.65,2.74]
[1761357077722,128.8900827,193.7,193.64,4.647]
[1761357078516,128.8900827,193.7,193.62,2.74]
[1761357078517,6.99404463,193.69,193.62,2.74]
[1761357079124,6.99404463,193.69,193.62,7.3875]
[1761357080226,6.99404463,193.69,193.63,2.74]
[1761357080722,4.646,193.69,193.63,2.74]
[1761357083026,62.3,193.68,193.63,2.74]
[1761357093038,62.3,193.68,193.62,4.6475]
[1761357093238,2.34804463,193.67,193.6,4.648]
[1761357093630,2.34804463,193.67,193.6,7.388]
[1761357093935,6.99464463,193.67,193.6,7.388]
[1761357095431,4.6468,193.66,193.58,4.6485]
[1761357095633,62.28,193.65,193.58,4.6485]
[1761357095827,2.34804463,193.64,193.57,2.74]
[1761357096932,6.99534463,193.64,193.57,2.74]
[1761357101745,6.99534463,193.64,193.56,5.54793445]
[1761357101936,2.34804463,193.61,193.54,2.64]
[1761357102937,6.99614463,193.61,193.54,2.64]
[1761357103741,6.99614463,193.61,193.53,5.5486738]
[1761357103932,6.99614463,193.61,193.53,8.1886738]
[1761357107055,4.6481,193.61,193.54,2.64]
[1761357107258,6.99614463,193.61,193.54,2.64]
[1761357108751,4.6481,193.61,193.54,2.64]
[1761357109052,4.6481,193.61,193.55,2.64]
[1761357116661,1.50305396,193.6,193.55,2.64]
[1761357117658,4.6481,193.61,193.55,2.64]
[1761357118660,1.50305396,193.62,193.55,7.2892]
[1761357118865,1.50305396,193.62,193.56,2.62]
[1761357121660,1.50305396,193.62,193.57,2.62]
[1761357121866,1.50305396,193.64,193.57,2.62]
[1761357123066,6.15045396,193.64,193.57,2.62]
[1761357124263,4.6474,193.64,193.57,2.62]
[1761357133178,1.50305396,193.63,193.57,2.62]
[1761357133479,6.15065396,193.63,193.57,2.62]
[1761357134381,126.78256905,193.63,193.57,2.62]
[1761357137477,1.50305396,193.61,193.57,2.62]
[1761357139179,125.27951509,193.63,193.57,2.62]
[1761357139386,1.50305396,193.61,193.57,2.62]
[1761357139581,122.13496905,193.63,193.57,2.62]
[1761357146786,1.50305396,193.61,193.56,4.6489]
[1761357146993,1.50305396,193.59,193.54,7.4295]
[1761357147188,1.50305396,193.59,193.55,2.78]
[1761357166699,62.3,193.6,193.55,2.78]
[1761357166903,1.50305396,193.58,193.55,2.78]
[1761357172109,1.50305396,193.56,193.54,2.8]
[1761357178727,2.34927017,193.58,193.54,2.8]
[1761357181532,2.34927017,193.58,193.51,2.78]
[1761357181737,2.34927017,193.58,193.51,3.67921319]
[1761357182330,2.34927017,193.58,193.52,2.78]
[1761357182732,2.34927017,193.58,193.52,4.6499]
[1761357183035,2.34927017,193.61,193.53,2.78]
[1761357183238,120.63191509,193.63,193.55,2.78]
[1761357183535,120.63191509,193.63,193.56,2.78]
[1761357183837,120.63191509,193.63,193.54,2.34927017]
[1761357183838,120.63191509,193.63,193.58,2.78]
[1761357186329,62.28,193.62,193.58,2.78]
[1761357186835,62.28,193.62,193.55,2.78]
[1761357186836,2.34927017,193.61,193.55,2.78]
[1761357188353,6.99717017,193.61,193.55,2.78]
[1761357190941,69.27717017,193.61,193.55,2.78]
[1761357191342,64.62927017,193.61,193.55,2.78]
[1761357191841,62.28,193.61,193.55,2.78]
[1761357192437,120.63191509,193.63,193.56,4.6491]
[1761357192632,120.63191509,193.63,193.57,2.77]
[1761357192838,182.91191509,193.63,193.57,2.77]
[1761357197736,2.34927017,193.62,193.57,2.77]
[1761357213057,2.34927017,193.62,193.54,2.77]
[1761357213954,4.648,193.61,193.54,7.4194]
[1761357214255,62.28,193.6,193.55,2.77]
[1761357225061,66.9283,193.6,193.55,2.77]
[1761357225362,66.9283,193.6,193.52,0.89906219]
[1761357225363,69.27757017,193.6,193.53,2.71]
[1761357230168,4.6486,193.58,193.53,2.71]
[1761357237474,69.27747017,193.6,193.53,2.71]
[1761357238463,66.9282,193.6,193.53,2.71]
[1761357238676,63.78290144,193.61,193.53,2.71]
[1761357240175,63.78290144,193.61,193.55,2.58]
[1761357240372,1.50290144,193.61,193.55,2.58]
[1761357241066,1.50290144,193.61,193.55,4.6492]
[1761357241268,66.9277,193.62,193.56,2.58]
[1761357241269,62.28,193.62,193.56,2.58]
[1761357242980,122.13481653,193.63,193.58,2.58]
[1761357243174,120.63191509,193.63,193.58,2.58]
[1761357244477,122.13481653,193.63,193.58,2.58]
[1761357254891,1.50290144,193.63,193.58,2.58]
[1761357260104,1.50290144,193.63,193.58,4.6484]
[1761357260293,1.50290144,193.65,193.59,2.74]
[1761357260498,63.76290144,193.65,193.59,2.74]
[1761357261202,1.50290144,193.67,193.62,2.74]
[1761357261399,1.50290144,193.65,193.62,2.74]
[1761357261600,1.50290144,193.65,193.58,2.74]
[1761357262204,1.50290144,193.65,193.61,4.6478]
[1761357262503,1.50290144,193.65,193.62,2.74]
[1761357263502,1.50290144,193.63,193.62,2.74]
[1761357268408,1.50290144,193.65,193.64,7.3871]
[1761357274015,1.50290144,193.65,193.57,1.50290144]
[1761357274016,1.50290144,193.67,193.66,2.74]
[1761357274707,1.50290144,193.68,193.67,2.74]
[1761357275209,1.50290144,193.68,193.6,2.74]
[1761357276008,296.49815724,193.72,193.59,1.50290144]
[1761357276009,296.49815724,193.72,193.65,2.74]
[1761357276309,1.50290144,193.67,193.65,2.74]
[1761357277809,1.50290144,193.67,193.66,2.65]
[1761357280709,1.50290144,193.68,193.66,2.65]
[1761357280913,1.50290144,193.69,193.67,2.65]
[1761357282912,296.49815724,193.72,193.67,2.65]
[1761357283113,298.00105868,193.72,193.64,2.65]
[1761357284515,298.00105868,193.72,193.67,2.65]
[1761357286022,298.00105868,193.72,193.69,2.65]
[1761357286415,1.50290144,193.7,193.69,2.65]
[1761357288021,1.50290144,193.71,193.69,2.65]
[1761357296532,296.49815724,193.72,193.69,7.2957]
[1761357296833,298.00105868,193.72,193.7,2.65]
[1761357298649,296.49815724,193.72,193.7,2.65]
[1761357301753,296.49815724,193.72,193.69,7.2757]
[1761357302052,296.49815724,193.72,193.7,2.63]
[1761357318859,296.49815724,193.72,193.69,7.2757]
[1761357324866,296.49815724,193.72,193.7,2.63]
[1761357325575,296.49815724,193.72,193.7,7.2756]
[1761357325867,296.49815724,193.72,193.71,2.63]
[1761357326672,296.49815724,193.72,193.7,4.6456]
[1761357326870,296.49815724,193.72,193.7,7.2756]
[1761357328967,2.3453156,193.74,193.7,4.6456]
[1761357329672,2.3453156,193.74,193.7,7.2756]
[1761357330670,2.3453156,193.74,193.7,4.6456]
[1761357336683,2.3453156,193.71,193.7,4.6456]
[1761357340178,2.3453156,193.71,193.7,7.4356]
[1761357341387,2.3453156,193.71,193.7,4.6456]
[1761357341587,2.3453156,193.74,193.7,4.6456]
[1761357341779,2.3453156,193.74,193.7,7.4356]
[1761357342787,2.3453156,193.74,193.7,4.6456]
[1761357342986,2.3453156,193.74,193.71,2.79]
[1761357346190,2.3453156,193.75,193.71,7.4353]
[1761357346992,122.65465454,193.77,193.71,2.79]
[1761357347397,122.65465454,193.77,193.75,4.6443]
[1761357347606,122.65465454,193.77,193.76,2.79]
[1761357349005,2.3453156,193.85,193.76,2.79]
[1761357349201,62.2,193.84,193.76,2.79]
[1761357350103,62.2,193.84,193.78,4.6436]
[1761357350307,2.3453156,193.82,193.74,2.79]
[1761357351805,2.3453156,193.82,193.76,4.6443]
[1761357353706,2.3453156,193.82,193.74,7.4347]
[1761357355399,2.3453156,193.79,193.75,2.79]
[1761357360223,2.3453156,193.79,193.72,2.85]
[1761357360811,1.50023686,193.78,193.72,2.85]
[1761357362005,1.50023686,193.8,193.73,4.645]
[1761357362209,1.50023686,193.8,193.74,2.85]
[1761357363899,4.6426,193.83,193.74,2.85]
[1761357364104,1.50023686,193.8,193.74,2.85]
[1761357365606,1.50023686,193.8,193.74,4.6446]
[1761357365809,1.50023686,193.8,193.75,2.85]
[1761357377721,4.6432,193.81,193.75,2.85]
[1761357391630,1.50023686,193.82,193.75,2.85]
[1761357391631,4.6435,193.8,193.75,2.85]
[1761357392229,4.6435,193.8,193.74,4.6446]
[1761357392430,6.14373686,193.8,193.74,4.6446]
[1761357392630,6.14373686,193.8,193.74,7.3446]
[1761357393425,6.14373686,193.8,193.75,2.7]
[1761357395829,4.6435,193.8,193.75,2.7]
[1761357401233,4.6435,193.8,193.74,4.80776494]
[1761357401433,4.6435,193.8,193.73,8.9580018]
[1761357401628,4.6435,193.8,193.74,2.65]
[1761357405329,4.6435,193.8,193.75,2.65]
[1761357407835,6.14373686,193.8,193.75,2.65]
[1761357414648,4.83291339,193.81,193.69,7.45776494]
[1761357414649,1.50023686,193.76,193.69,7.45776494]
[1761357414845,1.50023686,193.74,193.69,2.65]
[1761357415348,6.14513686,193.74,193.69,2.65]
[1761357415538,1.50023686,193.74,193.69,2.65]
[1761357415842,144.97975644,193.76,193.69,2.65]
[1761357416047,146.4799933,193.76,193.69,2.65]
[1761357416948,144.97975644,193.76,193.69,2.65]
[1761357418850,144.97975644,193.76,193.71,2.76]
[1761357419346,140.33545644,193.76,193.71,2.76]
[1761357419654,140.33545644,193.76,193.73,2.76]
[1761357420546,140.33545644,193.76,193.7,4.26023686]
[1761357420751,140.33545644,193.76,193.7,2.76]
[1761357425244,140.33545644,193.76,193.67,7.4064]
[1761357425452,140.33545644,193.76,193.67,2.76]
[1761357426962,4.6448,193.74,193.67,2.76]
[1761357428063,62.18,193.73,193.67,2.76]
[1761357436464,62.18,193.73,193.68,2.69]
[1761357436661,62.2,193.75,193.68,2.69]
[1761357438062,62.2,193.75,193.69,2.69]
[1761357442376,62.2,193.75,193.7,2.69]
[1761357442574,140.33545644,193.76,193.7,2.69]
[1761357442872,140.33545644,193.76,193.71,2.69]
[1761357443970,140.33545644,193.76,193.73,4.6448]
[1761357444179,140.33545644,193.76,193.74,2.69]
[1761357455673,140.33545644,193.76,193.71,4.6454]
[1761357455881,140.33545644,193.76,193.69,2.69]
[1761357456377,202.51545644,193.76,193.69,2.69]
[1761357456975,202.51545644,193.76,193.69,7.3359]
[1761357470385,202.51545644,193.76,193.7,2.86]